[Event "EYCC Open-U14 2019"]
[Site "Bratislava"]
[Date "2019.08.04"]
[Round "3.39"]
[White "Soucek, Petr"]
[Black "Fardet, Elouan"]
[Result "0-1"]
[ECO "A45"]
[WhiteElo "1725"]
[BlackElo "2047"]
[Annotator "NA"]
[PlyCount "56"]
[EventDate "2019.08.02"]
[EventType "swiss"]
[EventCountry "SVK"]
[SourceTitle "playchess.com"]
[Source "ChessBase"]
[SourceQuality "1"]
[TimeControl "40/5400+30:1800+30"]

1. d4 {[%emt 0:00:00]} Nf6 {[%emt 0:00:00]} 2. Bg5 {[%emt 0:00:00]} g6 {[%emt 0:00:00]} 3. Bxf6 {[%emt 0:00:00]} exf6 {[%emt 0:00:00]} 4. e3 {[%emt 0:00:00]} d5 {[%emt 0:00:10]} 5. Ne2 {[%emt 0:00:42]} Bd6 {[%emt 0:01:14]} 6. h4 {[%emt 0:04:31]} h5 {[%emt 0:07:08]} 7. Nbc3 {[%emt 0:02:34]} c6 {[%emt 0:01:59]} 8. Qd2 {[%emt 0:04:32]} Qe7 {[%emt 0:01:39]} 9. g3 {[%emt 0:01:56]} Bf5 {[%emt 0:05:03]} 10. Nf4 {[%emt 0:03:40]} Nd7 {[%emt 0:03:57]} 11. a3 {[%emt 0:03:38]} Nb6 {[%emt 0:07:26]} 12. O-O-O {[%emt 0:09:58]} O-O-O {[%emt 0:19:09]} 13. f3 {[%emt 0:08:52]} Rhe8 {[%emt 0:11:42]} 14. Re1 {[%emt 0:02:06]} Qc7 {[%emt 0:01:25]} 15. Rg1 {[%emt 0:16:27]} Kb8 {[%emt 0:04:11]} 16. e4 {[%emt 0:05:16]} dxe4 {[%emt 0:01:21]} 17. fxe4 {[%emt 0:00:10]} Bg4 {[%emt 0:00:34]} 18. Kb1 {[%emt 0:02:00]} Bc5 {[%emt 0:03:35]} 19. Nfe2 {[%emt 0:04:10]} Nc4 {[%emt 0:07:58]} 20. Qd1 {[%emt 0:10:01]} Bxd4 {[%emt 0:04:23]} 21. Qxd4 {[%emt 0:02:21]} Rxd4 {[%emt 0:00:10]} 22. Nxd4 {[%emt 0:00:07]} Nd2+ {[%emt 0:01:45]} 23. Kc1 {[%emt 0:00:56]} Qb6 {[%emt 0:01:13]} 24. Kxd2 {[%emt 0:03:17]} Qxd4+ {[%emt 0:00:32]} 25. Bd3 {[%emt 0:00:08]} f5 {[%emt 0:03:20]} 26. exf5 {[%emt 0:03:14]} Qf2+ {[%emt 0:00:34]} 27. Be2 {[%emt 0:01:22]} Bxe2 {[%emt 0:00:23]} 28. Rxe2 {[%emt 0:00:07]} Qd4+ {[%emt 0:00:25]} 0-1

[Event "EYCC Open-U14 2019"]
[Site "Bratislava"]
[Date "2019.08.04"]
[Round "3.40"]
[White "Pegno, Mattia"]
[Black "Kristoferitsch, Daniel"]
[Result "0-1"]
[ECO "C02"]
[WhiteElo "1821"]
[BlackElo "2108"]
[Annotator "NA"]
[PlyCount "99"]
[EventDate "2019.08.02"]
[EventType "swiss"]
[EventCountry "SVK"]
[SourceTitle "playchess.com"]
[Source "ChessBase"]
[SourceQuality "1"]
[TimeControl "40/5400+30:1800+30"]

1. e4 {[%emt 0:00:00]} e6 {[%emt 0:00:00]} 2. d4 {[%emt 0:00:00]} d5 {[%emt 0:00:00]} 3. e5 {[%emt 0:00:17]} c5 {[%emt 0:00:00]} 4. c3 {[%emt 0:00:08]} Nc6 {[%emt 0:00:00]} 5. Nf3 {[%emt 0:00:25]} Bd7 {[%emt 0:00:08]} 6. a3 {[%emt 0:01:46]} Nge7 {[%emt 0:00:26]} 7. b4 {[%emt 0:01:53]} cxd4 {[%emt 0:00:16]} 8. cxd4 {[%emt 0:00:06]} Nf5 {[%emt 0:00:29]} 9. Bb2 {[%emt 0:02:43]} b5 {[%emt 0:00:18]} 10. Bxb5 {[%emt 0:12:49]} Nxe5 {[%emt 0:00:48]} 11. Bxd7+ {[%emt 0:06:02]} Nxd7 {[%emt 0:00:10]} 12. O-O {[%emt 0:00:13]} Be7 {[%emt 0:11:52]} 13. Nbd2 {[%emt 0:06:04]} O-O {[%emt 0:01:15]} 14. Rc1 {[%emt 0:03:55]} a5 {[%emt 0:10:51]} 15. b5 {[%emt 0:11:08]} a4 {[%emt 0:01:18]} 16. Qc2 {[%emt 0:05:21]} Qa5 {[%emt 0:22:24]} 17. Rb1 {[%emt 0:16:46]} Qxb5 {[%emt 0:10:40]} 18. Rfc1 {[%emt 0:10:02]} Qa6 {[%emt 0:13:49]} 19. Qc7 {[%emt 0:04:08]} Rfd8 {[%emt 0:05:06]} 20. Rc6 {[%emt 0:04:40]} Qc8 {[%emt 0:01:27]} 21. Rbc1 {[%emt 0:05:22]} Qxc7 {[%emt 0:01:48]} 22. Rxc7 {[%emt 0:00:05]} Kf8 {[%emt 0:03:29]} 23. Kf1 {[%emt 0:03:45]} Ke8 {[%emt 0:02:53]} 24. Ke2 {[%emt 0:01:22]} Nd6 {[%emt 0:00:33]} 25. Ne5 {[%emt 0:01:06]} Nxe5 {[%emt 0:06:43]} 26. dxe5 {[%emt 0:00:02]} Nb5 {[%emt 0:00:16]} 27. R7c2 {[%emt 0:02:11]} Nxa3 {[%emt 0:02:27]} 28. Bxa3 {[%emt 0:00:28]} Bxa3 {[%emt 0:00:12]} 29. Ra1 {[%emt 0:00:16]} Bb4 {[%emt 0:01:26]} 30. Nb1 {[%emt 0:00:50]} a3 {[%emt 0:01:53]} 31. Rca2 {[%emt 0:00:44]} Ra7 {[%emt 0:00:37]} 32. Kd3 {[%emt 0:00:17]} Rda8 {[%emt 0:00:34]} 33. f3 {[%emt 0:00:32]} Kd7 {[%emt 0:00:29]} 34. h3 {[%emt 0:00:48]} Kc6 {[%emt 0:00:22]} 35. Rc2+ {[%emt 0:00:13]} Kb5 {[%emt 0:01:02]} 36. Raa2 {[%emt 0:00:23]} Ra6 {[%emt 0:00:48]} 37. g4 {[%emt 0:00:41]} Rc6 {[%emt 0:00:50]} 38. Rxc6 {[%emt 0:00:34]} Kxc6 {[%emt 0:00:02]} 39. h4 {[%emt 0:00:32]} Kb5 {[%emt 0:00:37]} 40. h5 {[%emt 0:00:00]} Ka4 {[%emt 0:00:00]} 41. Rc2 {[%emt 0:05:14]} Kb5 {[%emt 0:21:25]} 42. Ra2 {[%emt 0:01:49]} Be7 {[%emt 0:01:15]} 43. Kc3 {[%emt 0:03:30]} Ka4 {[%emt 0:00:42]} 44. Ra1 {[%emt 0:12:16]} Bb4+ {[%emt 0:02:00]} 45. Kd3 {[%emt 0:06:21]} Kb3 {[%emt 0:00:55]} 46. Nxa3 {[%emt 0:01:02]} Bxa3 {[%emt 0:00:56]} 47. f4 {[%emt 0:00:40]} Rc8 {[%emt 0:01:06]} 48. Rf1 {[%emt 0:01:12]} Rc1 {[%emt 0:00:17]} 49. Rf2 {[%emt 0:00:18]} Rc3+ {[%emt 0:00:08]} 50. Kd4 0-1

[Event "EYCC Open-U14 2019"]
[Site "Bratislava"]
[Date "2019.08.04"]
[Round "3.41"]
[White "Creanga, Robert-Ionut"]
[Black "Binz, Lennox"]
[Result "1-0"]
[ECO "B33"]
[WhiteElo "2024"]
[BlackElo "1871"]
[Annotator "NA"]
[PlyCount "59"]
[EventDate "2019.08.02"]
[EventType "swiss"]
[EventCountry "SVK"]
[SourceTitle "playchess.com"]
[Source "ChessBase"]
[SourceQuality "1"]
[TimeControl "40/5400+30:1800+30"]

1. e4 {[%emt 0:00:00]} c5 {[%emt 0:00:00]} 2. Nf3 {[%emt 0:00:03]} e6 {[%emt 0:00:21]} 3. d4 {[%emt 0:00:04]} cxd4 {[%emt 0:00:15]} 4. Nxd4 {[%emt 0:00:00]} Nf6 {[%emt 0:00:33]} 5. Nc3 {[%emt 0:00:14]} Nc6 {[%emt 0:00:25]} 6. Ndb5 {[%emt 0:00:05]} d6 {[%emt 0:00:26]} 7. Bf4 {[%emt 0:00:05]} e5 {[%emt 0:01:00]} 8. Bg5 {[%emt 0:00:06]} a6 {[%emt 0:00:31]} 9. Na3 {[%emt 0:00:25]} b5 {[%emt 0:00:33]} 10. Nd5 {[%emt 0:00:07]} Be7 {[%emt 0:01:24]} 11. Bxf6 {[%emt 0:00:07]} Bxf6 {[%emt 0:06:55]} 12. c3 {[%emt 0:00:10]} O-O {[%emt 0:02:27]} 13. Nc2 {[%emt 0:03:03]} Be7 {[%emt 0:07:43]} 14. a4 {[%emt 0:06:29]} bxa4 {[%emt 0:03:18]} 15. Rxa4 {[%emt 0:00:11]} f5 {[%emt 0:03:07]} 16. Bc4 {[%emt 0:14:00]} Kh8 {[%emt 0:03:14]} 17. exf5 {[%emt 0:01:46]} Bxf5 {[%emt 0:01:59]} 18. Nce3 {[%emt 0:01:08]} a5 {[%emt 0:04:09]} 19. Nxf5 {[%emt 0:07:30]} Rxf5 {[%emt 0:01:35]} 20. Bd3 {[%emt 0:00:44]} Rf7 {[%emt 0:02:27]} 21. Qh5 {[%emt 0:03:22]} Qg8 {[%emt 0:04:18]} 22. Bc4 {[%emt 0:12:30]} Qf8 {[%emt 0:08:01]} 23. Bd3 {[%emt 0:02:48]} Qg8 {[%emt 0:01:03]} 24. Rc4 {[%emt 0:07:33]} Rc8 {[%emt 0:10:42]} 25. Bg6 {[%emt 0:03:11]} Rff8 {[%emt 0:03:26]} 26. Rxc6 h6 {[%emt 0:01:37]} 27. Nxe7 {[%emt 0:01:06]} Qa2 {[%emt 0:00:28]} 28. O-O {[%emt 0:00:10]} Rxc6 {[%emt 0:00:40]} 29. Nxc6 {[%emt 0:00:03]} Qxb2 {[%emt 0:00:30]} 30. Bb1 {[%emt 0:00:30]} 1-0

[Event "EYCC Open-U14 2019"]
[Site "Bratislava"]
[Date "2019.08.04"]
[Round "3.42"]
[White "Krivenko, Dion"]
[Black "Paduano, Claudio"]
[Result "1/2-1/2"]
[ECO "B30"]
[WhiteElo "1700"]
[BlackElo "2037"]
[Annotator "NA"]
[PlyCount "120"]
[EventDate "2019.08.02"]
[EventType "swiss"]
[EventCountry "SVK"]
[SourceTitle "playchess.com"]
[Source "ChessBase"]
[SourceQuality "1"]
[TimeControl "40/5400+30:1800+30"]

1. e4 {[%emt 0:00:00]} c5 {[%emt 0:00:00]} 2. Nf3 {[%emt 0:00:00]} Nc6 {[%emt 0:00:00]} 3. Nc3 {[%emt 0:00:00]} e6 {[%emt 0:03:15]} 4. Bb5 {[%emt 0:01:30]} Nd4 {[%emt 0:12:08]} 5. Be2 {[%emt 0:01:36]} Ne7 {[%emt 0:17:11]} 6. d3 {[%emt 0:00:13]} a6 {[%emt 0:08:06]} 7. Be3 {[%emt 0:01:17]} Nec6 8. Qd2 {[%emt 0:05:16]} Qc7 {[%emt 0:27:16]} 9. Nd1 {[%emt 0:11:44]} g6 {[%emt 0:16:14]} 10. c3 {[%emt 0:01:59]} Nxe2 {[%emt 0:01:08]} 11. Qxe2 {[%emt 0:00:10]} b6 {[%emt 0:04:17]} 12. Bg5 {[%emt 0:03:53]} Bg7 {[%emt 0:01:54]} 13. Ne3 {[%emt 0:02:13]} h6 {[%emt 0:04:15]} 14. Bh4 {[%emt 0:00:10]} O-O {[%emt 0:00:32]} 15. Bg3 {[%emt 0:05:49]} d6 {[%emt 0:00:35]} 16. Nc4 {[%emt 0:04:17]} e5 {[%emt 0:00:32]} 17. Nfd2 {[%emt 0:07:58]} f5 {[%emt 0:00:33]} 18. f3 {[%emt 0:01:28]} Be6 {[%emt 0:00:30]} 19. Bf2 {[%emt 0:01:57]} Rad8 {[%emt 0:00:30]} 20. O-O {[%emt 0:01:45]} Ne7 {[%emt 0:00:32]} 21. Rfe1 {[%emt 0:03:01]} Rd7 {[%emt 0:00:28]} 22. Ne3 {[%emt 0:02:25]} Rfd8 {[%emt 0:00:31]} 23. c4 {[%emt 0:00:51]} Nc6 {[%emt 0:00:29]} 24. Nd5 {[%emt 0:02:14]} Qb8 {[%emt 0:00:31]} 25. Nf1 {[%emt 0:02:55]} f4 {[%emt 0:00:28]} 26. g3 {[%emt 0:03:06]} g5 {[%emt 0:00:30]} 27. g4 {[%emt 0:01:56]} Rb7 {[%emt 0:00:31]} 28. Nd2 {[%emt 0:03:35]} Kf7 {[%emt 0:00:31]} 29. h4 {[%emt 0:02:25]} h5 {[%emt 0:00:30]} 30. gxh5 {[%emt 0:03:40]} Rh8 {[%emt 0:00:32]} 31. Nf1 Rxh5 {[%emt 0:00:28]} 32. Nh2 {[%emt 0:04:55]} Qh8 {[%emt 0:00:31]} 33. Ng4 {[%emt 0:00:40]} gxh4 {[%emt 0:00:28]} 34. Kh2 {[%emt 0:00:50]} Bd7 {[%emt 0:00:31]} 35. Rh1 {[%emt 0:02:57]} b5 {[%emt 0:00:31]} 36. b3 {[%emt 0:00:53]} bxc4 {[%emt 0:00:29]} 37. dxc4 {[%emt 0:00:35]} a5 {[%emt 0:00:29]} 38. Nc3 {[%emt 0:00:50]} Nd4 {[%emt 0:00:31]} 39. Bxd4 {[%emt 0:00:24]} cxd4 {[%emt 0:00:30]} 40. Nb5 {[%emt 0:00:00]} Bxb5 {[%emt 0:00:00]} 41. cxb5 {[%emt 0:01:57]} Qb8 {[%emt 0:21:04]} 42. a4 {[%emt 0:03:06]} Rc7 {[%emt 0:05:25]} 43. Rac1 {[%emt 0:02:52]} Rh8 {[%emt 0:03:44]} 44. Rc4 {[%emt 0:02:45]} Rhc8 {[%emt 0:01:49]} 45. Rhc1 {[%emt 0:00:52]} Qb6 {[%emt 0:01:27]} 46. Nf2 {[%emt 0:02:56]} Bf6 {[%emt 0:00:00]} 47. Qd3 {[%emt 0:04:12]} Rxc4 {[%emt 0:00:31]} 48. Rxc4 {[%emt 0:00:42]} Rc5 {[%emt 0:00:29]} 49. Qc2 {[%emt 0:02:09]} Qc7 {[%emt 0:00:31]} 50. Nd3 {[%emt 0:01:09]} Rxc4 {[%emt 0:00:29]} 51. Qxc4+ {[%emt 0:00:43]} Qxc4 {[%emt 0:00:10]} 52. bxc4 {[%emt 0:00:01]} Ke6 {[%emt 0:00:50]} 53. Kh3 {[%emt 0:01:05]} Bd8 {[%emt 0:00:31]} 54. Kg4 {[%emt 0:01:15]} Kd7 {[%emt 0:00:30]} 55. Kh3 {[%emt 0:00:37]} Ke6 {[%emt 0:00:27]} 56. Kg4 {[%emt 0:00:50]} Kd7 {[%emt 0:00:34]} 57. Kh3 {[%emt 0:00:15]} Bf6 {[%emt 0:00:28]} 58. Kg4 {[%emt 0:01:19]} Kc8 {[%emt 0:00:30]} 59. Kh3 {[%emt 0:00:18]} Kb7 {[%emt 0:00:25]} 60. Kg4 {[%emt 0:00:18]} Kb6 1/2-1/2

[Event "EYCC Open-U14 2019"]
[Site "Bratislava"]
[Date "2019.08.04"]
[Round "3.43"]
[White "Falkevall, Axel"]
[Black "Maruntis, Patrik-Robert"]
[Result "1-0"]
[ECO "B06"]
[WhiteElo "2067"]
[BlackElo "1876"]
[Annotator "NA"]
[PlyCount "69"]
[EventDate "2019.08.02"]
[EventType "swiss"]
[EventCountry "SVK"]
[SourceTitle "playchess.com"]
[Source "ChessBase"]
[SourceQuality "1"]
[TimeControl "40/5400+30:1800+30"]

1. e4 {[%emt 0:00:00]} d6 {[%emt 0:00:00]} 2. d4 {[%emt 0:00:00]} g6 {[%emt 0:00:00]} 3. Nc3 {[%emt 0:00:27]} Bg7 {[%emt 0:00:00]} 4. Be3 {[%emt 0:00:26]} Nf6 {[%emt 0:00:59]} 5. h3 {[%emt 0:00:53]} O-O {[%emt 0:02:40]} 6. f4 {[%emt 0:03:08]} c6 {[%emt 0:10:54]} 7. Nf3 {[%emt 0:03:52]} Qc7 {[%emt 0:13:21]} 8. Bd3 {[%emt 0:05:30]} a6 {[%emt 0:11:40]} 9. e5 {[%emt 0:11:12]} Nd5 {[%emt 0:05:21]} 10. Nxd5 {[%emt 0:02:17]} cxd5 {[%emt 0:00:07]} 11. Qd2 {[%emt 0:01:38]} Nc6 {[%emt 0:05:38]} 12. O-O {[%emt 0:03:43]} e6 {[%emt 0:01:57]} 13. h4 {[%emt 0:15:43]} f5 {[%emt 0:27:01]} 14. h5 {[%emt 0:12:26]} gxh5 {[%emt 0:07:24]} 15. Qe1 {[%emt 0:15:10]} Bd7 {[%emt 0:01:25]} 16. Qh4 {[%emt 0:02:12]} Be8 {[%emt 0:01:35]} 17. g4 {[%emt 0:03:25]} Qd8 {[%emt 0:02:10]} 18. gxf5 {[%emt 0:01:23]} exf5 {[%emt 0:01:39]} 19. Qh3 {[%emt 0:02:50]} Bg6 {[%emt 0:00:47]} 20. c3 {[%emt 0:03:50]} Qd7 {[%emt 0:00:45]} 21. Rf2 {[%emt 0:02:06]} Rae8 {[%emt 0:01:00]} 22. Rg2 {[%emt 0:00:36]} Kh8 {[%emt 0:00:32]} 23. Kh1 {[%emt 0:00:51]} Bh6 {[%emt 0:01:20]} 24. Nh4 {[%emt 0:01:29]} Qf7 {[%emt 0:01:03]} 25. Rag1 {[%emt 0:00:34]} Re6 {[%emt 0:00:08]} 26. Bxf5 {[%emt 0:02:48]} Bxf5 {[%emt 0:00:24]} 27. Nxf5 {[%emt 0:00:16]} dxe5 {[%emt 0:01:03]} 28. Nxh6 {[%emt 0:00:36]} Rxh6 {[%emt 0:00:19]} 29. dxe5 {[%emt 0:00:39]} Rg6 {[%emt 0:01:10]} 30. Rg5 {[%emt 0:00:50]} Rfg8 {[%emt 0:01:08]} 31. Qxh5 {[%emt 0:01:39]} Kg7 {[%emt 0:01:08]} 32. f5 {[%emt 0:01:15]} Rxg5 {[%emt 0:00:24]} 33. Rxg5+ {[%emt 0:00:44]} Kf8 {[%emt 0:00:44]} 34. Qxf7+ {[%emt 0:00:13]} Kxf7 {[%emt 0:00:08]} 35. e6+ 1-0

[Event "EYCC Open-U14 2019"]
[Site "Bratislava"]
[Date "2019.08.04"]
[Round "3.44"]
[White "Waligora, Franciszek"]
[Black "Schlegel, Igor"]
[Result "0-1"]
[ECO "B54"]
[WhiteElo "1802"]
[BlackElo "1968"]
[Annotator "NA"]
[PlyCount "106"]
[EventDate "2019.08.02"]
[EventType "swiss"]
[EventCountry "SVK"]
[SourceTitle "playchess.com"]
[Source "ChessBase"]
[SourceQuality "1"]
[TimeControl "40/5400+30:1800+30"]

1. e4 {[%emt 0:00:00]} c5 {[%emt 0:00:00]} 2. Nf3 {[%emt 0:00:00]} d6 {[%emt 0:00:00]} 3. d4 {[%emt 0:00:00]} cxd4 {[%emt 0:00:00]} 4. Nxd4 {[%emt 0:00:17]} Nf6 {[%emt 0:00:00]} 5. f3 {[%emt 0:00:12]} e5 {[%emt 0:00:15]} 6. Nb3 {[%emt 0:00:19]} Be7 {[%emt 0:01:09]} 7. c4 {[%emt 0:00:44]} a5 {[%emt 0:01:25]} 8. a4 {[%emt 0:04:07]} O-O {[%emt 0:08:45]} 9. Be3 {[%emt 0:01:16]} Be6 {[%emt 0:04:45]} 10. Be2 {[%emt 0:02:37]} Nc6 {[%emt 0:06:23]} 11. O-O {[%emt 0:03:17]} Rc8 {[%emt 0:01:54]} 12. Nc3 {[%emt 0:01:54]} Nb4 {[%emt 0:12:18]} 13. Nd2 {[%emt 0:03:06]} Nh5 {[%emt 0:07:48]} 14. g3 {[%emt 0:05:26]} Bg5 {[%emt 0:07:07]} 15. f4 {[%emt 0:03:13]} exf4 {[%emt 0:01:24]} 16. Bd4 {[%emt 0:14:40]} Bf6 {[%emt 0:26:58]} 17. Bf2 {[%emt 0:07:25]} fxg3 {[%emt 0:00:33]} 18. hxg3 {[%emt 0:00:29]} g6 {[%emt 0:00:30]} 19. Bxh5 {[%emt 0:06:00]} gxh5 {[%emt 0:00:02]} 20. Qxh5 {[%emt 0:02:09]} Nd3 {[%emt 0:02:52]} 21. Kg2 {[%emt 0:05:41]} Bg7 {[%emt 0:08:11]} 22. Rh1 {[%emt 0:04:02]} h6 {[%emt 0:00:04]} 23. Be3 {[%emt 0:03:21]} Qf6 {[%emt 0:00:09]} 24. Raf1 {[%emt 0:02:44]} Qe5 {[%emt 0:03:05]} 25. Bxh6 {[%emt 0:07:17]} Qxh5 {[%emt 0:01:35]} 26. Rxh5 {[%emt 0:00:16]} Bxh6 {[%emt 0:01:16]} 27. Rxh6 {[%emt 0:00:39]} Nxb2 {[%emt 0:00:21]} 28. Nd5 {[%emt 0:02:57]} Nxc4 {[%emt 0:02:09]} 29. Nxc4 {[%emt 0:13:33]} Rxc4 {[%emt 0:00:26]} 30. Ra1 {[%emt 0:00:27]} Kg7 {[%emt 0:01:10]} 31. Rh4 {[%emt 0:00:25]} Rxe4 {[%emt 0:00:44]} 32. Nc7 {[%emt 0:02:04]} Rxh4 {[%emt 0:00:21]} 33. gxh4 {[%emt 0:00:15]} Rc8 {[%emt 0:01:46]} 34. Nb5 {[%emt 0:01:11]} Rc2+ {[%emt 0:00:47]} 35. Kg3 {[%emt 0:00:58]} d5 {[%emt 0:00:38]} 36. Re1 {[%emt 0:00:50]} Rc4 {[%emt 0:00:24]} 37. Nd6 {[%emt 0:00:41]} Rg4+ {[%emt 0:00:12]} 38. Kf3 {[%emt 0:00:57]} Rxh4 {[%emt 0:00:18]} 39. Nxb7 {[%emt 0:00:15]} Rxa4 {[%emt 0:00:14]} 40. Nc5 {[%emt 0:00:00]} Ra3+ {[%emt 0:00:00]} 41. Kf4 {[%emt 0:01:10]} Kf6 {[%emt 0:00:57]} 42. Rd1 {[%emt 0:02:43]} Rc3 {[%emt 0:04:01]} 43. Nb7 {[%emt 0:01:57]} a4 {[%emt 0:01:31]} 44. Ra1 {[%emt 0:00:51]} a3 {[%emt 0:00:31]} 45. Nd6 {[%emt 0:00:32]} Rb3 {[%emt 0:02:21]} 46. Ne8+ {[%emt 0:05:18]} Ke7 {[%emt 0:01:23]} 47. Ng7 {[%emt 0:00:25]} Kd6 {[%emt 0:00:21]} 48. Ne8+ {[%emt 0:01:07]} Kc5 {[%emt 0:03:20]} 49. Nf6 {[%emt 0:02:12]} Kd4 {[%emt 0:03:51]} 50. Rc1 {[%emt 0:01:57]} a2 {[%emt 0:01:57]} 51. Ra1 {[%emt 0:00:36]} Ra3 {[%emt 0:00:07]} 52. Ng4 {[%emt 0:00:27]} Bxg4 {[%emt 0:00:09]} 53. Kxg4 {[%emt 0:00:10]} Kc3 {[%emt 0:00:06]} 0-1

[Event "EYCC Open-U14 2019"]
[Site "Bratislava"]
[Date "2019.08.04"]
[Round "3.45"]
[White "Indriunas, Matas"]
[Black "Grigoryan, Aram"]
[Result "0-1"]
[ECO "C07"]
[WhiteElo "1960"]
[BlackElo "1947"]
[Annotator "NA"]
[PlyCount "64"]
[EventDate "2019.08.02"]
[EventType "swiss"]
[EventCountry "SVK"]
[SourceTitle "playchess.com"]
[Source "ChessBase"]
[SourceQuality "1"]
[TimeControl "40/5400+30:1800+30"]

1. e4 {[%emt 0:00:00]} e6 {[%emt 0:00:00]} 2. d4 {[%emt 0:00:00]} d5 {[%emt 0:00:00]} 3. Nd2 {[%emt 0:00:00]} c5 {[%emt 0:00:00]} 4. exd5 {[%emt 0:00:26]} Qxd5 {[%emt 0:00:00]} 5. dxc5 {[%emt 0:00:43]} Bxc5 {[%emt 0:00:00]} 6. Ngf3 {[%emt 0:00:27]} Nf6 {[%emt 0:00:48]} 7. Bc4 {[%emt 0:01:06]} Qd6 {[%emt 0:01:52]} 8. O-O {[%emt 0:02:42]} O-O {[%emt 0:00:42]} 9. Qe2 {[%emt 0:03:46]} a6 {[%emt 0:07:32]} 10. Bd3 {[%emt 0:15:18]} Nc6 {[%emt 0:13:23]} 11. c3 {[%emt 0:13:18]} Re8 {[%emt 0:12:29]} 12. Nc4 {[%emt 0:29:57]} Qc7 {[%emt 0:06:41]} 13. Nfe5 {[%emt 0:05:33]} b5 {[%emt 0:03:23]} 14. Nxc6 {[%emt 0:01:12]} bxc4 {[%emt 0:00:47]} 15. Bxh7+ {[%emt 0:03:35]} Nxh7 {[%emt 0:00:14]} 16. Ne5 {[%emt 0:00:08]} Bd6 {[%emt 0:01:23]} 17. f4 {[%emt 0:03:16]} Bb7 {[%emt 0:01:10]} 18. Nxc4 {[%emt 0:01:08]} a5 {[%emt 0:00:54]} 19. Nxd6 {[%emt 0:04:41]} Qxd6 {[%emt 0:00:08]} 20. Be3 {[%emt 0:00:54]} Qc6 {[%emt 0:00:59]} 21. Rf3 {[%emt 0:02:20]} Qa6 {[%emt 0:01:24]} 22. Qxa6 {[%emt 0:00:41]} Rxa6 {[%emt 0:00:01]} 23. Rff1 {[%emt 0:00:49]} Rd6 {[%emt 0:00:34]} 24. Bd4 {[%emt 0:01:49]} Nf6 {[%emt 0:00:18]} 25. b3 {[%emt 0:01:37]} Rc8 {[%emt 0:00:57]} 26. a3 {[%emt 0:01:21]} Ne4 {[%emt 0:00:48]} 27. Rac1 {[%emt 0:04:05]} Nd2 {[%emt 0:00:48]} 28. Be5 {[%emt 0:00:36]} Rdd8 {[%emt 0:00:29]} 29. Rfd1 {[%emt 0:00:40]} f6 {[%emt 0:00:36]} 30. Bd4 {[%emt 0:00:46]} Nxb3 {[%emt 0:00:07]} 31. Rb1 {[%emt 0:00:03]} Nxd4 {[%emt 0:00:05]} 32. cxd4 {[%emt 0:00:17]} Be4 {[%emt 0:00:03]} 0-1

[Event "EYCC Open-U14 2019"]
[Site "Bratislava"]
[Date "2019.08.04"]
[Round "3.46"]
[White "Olde, Karl Erik"]
[Black "Lopez Varela, Pablo"]
[Result "1/2-1/2"]
[ECO "A41"]
[WhiteElo "1516"]
[BlackElo "2131"]
[Annotator "NA"]
[PlyCount "90"]
[EventDate "2019.08.02"]
[EventType "swiss"]
[EventCountry "SVK"]
[SourceTitle "playchess.com"]
[Source "ChessBase"]
[SourceQuality "1"]
[TimeControl "40/5400+30:1800+30"]

1. d4 {[%emt 0:00:00]} d6 {[%emt 0:00:00]} 2. c4 {[%emt 0:00:00]} e5 {[%emt 0:00:00]} 3. Nc3 {[%emt 0:01:05]} exd4 {[%emt 0:01:40]} 4. Qxd4 {[%emt 0:00:12]} Nc6 {[%emt 0:00:03]} 5. Qd1 {[%emt 0:02:18]} g6 {[%emt 0:00:24]} 6. g3 {[%emt 0:00:50]} Bg7 {[%emt 0:00:07]} 7. Bg2 {[%emt 0:00:07]} Nge7 {[%emt 0:01:05]} 8. Nf3 {[%emt 0:01:20]} O-O {[%emt 0:00:08]} 9. O-O {[%emt 0:00:07]} Be6 {[%emt 0:04:34]} 10. Nd5 {[%emt 0:03:06]} Na5 {[%emt 0:15:15]} 11. Nd4 {[%emt 0:10:24]} c6 {[%emt 0:07:32]} 12. Nxe6 {[%emt 0:03:39]} fxe6 {[%emt 0:00:11]} 13. Nxe7+ {[%emt 0:00:08]} Qxe7 {[%emt 0:00:03]} 14. Qa4 {[%emt 0:02:04]} Qc7 {[%emt 0:03:26]} 15. Bd2 {[%emt 0:03:14]} b6 {[%emt 0:00:02]} 16. Bxa5 {[%emt 0:02:41]} bxa5 {[%emt 0:00:01]} 17. Qxc6 {[%emt 0:02:58]} Qxc6 {[%emt 0:00:11]} 18. Bxc6 {[%emt 0:00:05]} Rab8 {[%emt 0:00:02]} 19. Rab1 {[%emt 0:02:30]} Bxb2 {[%emt 0:00:42]} 20. Rfd1 {[%emt 0:01:04]} Ba3 {[%emt 0:00:14]} 21. Rxb8 {[%emt 0:11:18]} Rxb8 {[%emt 0:00:00]} 22. Rd3 {[%emt 0:00:13]} Rb1+ {[%emt 0:01:47]} 23. Kg2 {[%emt 0:00:11]} Bc5 {[%emt 0:03:11]} 24. Rb3 {[%emt 0:04:51]} Rc1 {[%emt 0:03:28]} 25. Rb8+ {[%emt 0:09:49]} Kg7 {[%emt 0:00:14]} 26. Rb7+ {[%emt 0:00:45]} Kf6 {[%emt 0:02:20]} 27. Rxh7 {[%emt 0:01:46]} Rc2 {[%emt 0:01:44]} 28. Be8 {[%emt 0:06:28]} Rxe2 {[%emt 0:00:43]} 29. Rf7+ {[%emt 0:01:13]} Ke5 {[%emt 0:00:14]} 30. a4 {[%emt 0:00:56]} d5 {[%emt 0:05:29]} 31. cxd5 {[%emt 0:03:40]} exd5 {[%emt 0:00:08]} 32. Rf3 {[%emt 0:00:55]} g5 {[%emt 0:02:27]} 33. g4 {[%emt 0:03:00]} a6 {[%emt 0:03:22]} 34. h4 {[%emt 0:03:05]} gxh4 {[%emt 0:00:22]} 35. g5 {[%emt 0:00:11]} Bd4 {[%emt 0:20:03]} 36. g6 {[%emt 0:02:02]} Ke4 {[%emt 0:00:09]} 37. Rf7 {[%emt 0:02:51]} Kd3 {[%emt 0:05:40]} 38. Bd7 {[%emt 0:00:00]} Kc4 {[%emt 0:00:00]} 39. g7 {[%emt 0:00:00]} Bxg7 {[%emt 0:00:00]} 40. Rxg7 {[%emt 0:00:00]} d4 {[%emt 0:00:00]} 41. Bc8 {[%emt 0:05:20]} Kc3 {[%emt 0:05:16]} 42. Bxa6 {[%emt 0:00:43]} h3+ {[%emt 0:00:03]} 43. Kxh3 {[%emt 0:02:08]} Rxf2 {[%emt 0:00:08]} 44. Rg3+ {[%emt 0:00:22]} Kb4 {[%emt 0:00:36]} 45. Bb5 {[%emt 0:00:46]} Rc2 {[%emt 0:00:33]} 1/2-1/2